[Event "Titled Tuesday Blitz June 6 Early 2023"]
[White "Samunenkov, Ihor"]
[Black "Ljukin, Sergei"]
[WhiteFideId "14187086"]
[BlackFideId "14102200"]
[WhiteElo "2457"]
[BlackElo "2312"]
[Result "1-0"]
[Round "5"]
[TimeControl "180+2"]
[Date "2023.06.06"]
[WhiteClock "0:00:05"]
[BlackClock "0:00:15"]
[Board "82"]

1. e4 {[%clk 0:02:59]}  e6 {[%clk 0:02:57]} 2. d4 {[%clk 0:02:58]}  d5 {[%clk 0:02:57]} 3. Nd2 {[%clk 0:02:58]}  Nf6 {[%clk 0:02:57]} 4. e5 {[%clk 0:02:57]}  Nfd7 {[%clk 0:02:57]} 5. Bd3 {[%clk 0:02:58]}  c5 {[%clk 0:02:58]} 6. c3 {[%clk 0:02:58]}  Nc6 {[%clk 0:02:58]} 7. Ne2 {[%clk 0:02:58]}  cxd4 {[%clk 0:02:59]} 8. cxd4 {[%clk 0:02:59]}  f6 {[%clk 0:02:59]} 9. exf6 {[%clk 0:03:00]}  Qxf6 {[%clk 0:03:00]} 10. Nf3 {[%clk 0:02:57]}  h6 {[%clk 0:03:00]} 11. O-O {[%clk 0:02:47]}  Bd6 {[%clk 0:03:00]} 12. h3 {[%clk 0:02:23]}  O-O {[%clk 0:03:00]} 13. Nc3 {[%clk 0:02:21]}  Rd8 {[%clk 0:02:53]} 14. Re1 {[%clk 0:02:17]}  Nf8 {[%clk 0:02:53]} 15. Bb1 {[%clk 0:01:32]}  Bd7 {[%clk 0:02:52]} 16. Qb3 {[%clk 0:01:04]}  Na5 {[%clk 0:02:24]} 17. Qc2 {[%clk 0:01:03]}  Nc6 {[%clk 0:02:11]} 18. Nb5 {[%clk 0:00:48]}  Bb8 {[%clk 0:02:07]} 19. Be3 {[%clk 0:00:36]}  a6 {[%clk 0:02:03]} 20. Nc3 {[%clk 0:00:35]}  Be8 {[%clk 0:01:49]} 21. Qb3 {[%clk 0:00:31]}  b5 {[%clk 0:01:41]} 22. a4 {[%clk 0:00:26]}  b4 {[%clk 0:01:40]} 23. Ne2 {[%clk 0:00:26]}  Bh5 {[%clk 0:01:37]} 24. Nd2 {[%clk 0:00:22]}  Bxe2 {[%clk 0:01:32]} 25. Rxe2 {[%clk 0:00:22]}  Nxd4 {[%clk 0:01:32]} 26. Bxd4 {[%clk 0:00:23]}  Qxd4 {[%clk 0:01:32]} 27. Nf3 {[%clk 0:00:21]}  Qf4 {[%clk 0:01:20]} 28. Ba2 {[%clk 0:00:11]}  Bd6 {[%clk 0:00:59]} 29. g3 {[%clk 0:00:10]}  Qf6 {[%clk 0:00:57]} 30. Rd1 {[%clk 0:00:10]}  a5 {[%clk 0:00:57]} 31. Nd4 {[%clk 0:00:09]}  Rac8 {[%clk 0:00:53]} 32. Nxe6 {[%clk 0:00:06]}  Nxe6 {[%clk 0:00:35]} 33. Qxd5 {[%clk 0:00:06]}  Bc7 {[%clk 0:00:27]} 34. Qxe6+ {[%clk 0:00:02]}  Qxe6 {[%clk 0:00:27]} 35. Bxe6+ {[%clk 0:00:03]}  Kh8 {[%clk 0:00:24]} 36. Rc1 {[%clk 0:00:04]}  Re8 {[%clk 0:00:17]} 37. Bxc8 {[%clk 0:00:04]}  Rxe2 {[%clk 0:00:16]} 38. Rxc7 {[%clk 0:00:05]}  Rxb2 {[%clk 0:00:16]} 39. Ra7 {[%clk 0:00:05]}  Ra2 {[%clk 0:00:14]} 40. Rxa5 {[%clk 0:00:05]}  b3 {[%clk 0:00:15]} 41. Kg2 {[%clk 0:00:04]}  b2 {[%clk 0:00:15]} 42. Rb5 {[%clk 0:00:04]}  Rxa4 {[%clk 0:00:15]} 43. Rxb2 {[%clk 0:00:04]}  Rc4 {[%clk 0:00:16]} 44. Bf5 {[%clk 0:00:04]}  g5 {[%clk 0:00:16]} 45. Rb6 {[%clk 0:00:03]}  Kg7 {[%clk 0:00:16]} 46. Rg6+ {[%clk 0:00:04]}  Kf7 {[%clk 0:00:16]} 47. Be6+ {[%clk 0:00:04]}  Kxg6 {[%clk 0:00:15]} 48. Bxc4 {[%clk 0:00:05]} 1-0


[Site "https://www.chess.com"]

[Event "Titled Tuesday Blitz June 6 Early 2023"]
[White "Martinez Ramirez, Lennis"]
[Black "Ismayil, Malak"]
[WhiteFideId "3509079"]
[BlackFideId "13412604"]
[WhiteElo "2410"]
[BlackElo "1868"]
[Result "1-0"]
[Round "5"]
[TimeControl "180+2"]
[Date "2023.06.06"]
[WhiteClock "0:00:06"]
[BlackClock "0:00:03"]
[Board "83"]

1. c4 {[%clk 0:03:00]}  e5 {[%clk 0:02:58]} 2. Nc3 {[%clk 0:02:59]}  Nf6 {[%clk 0:02:58]} 3. Nf3 {[%clk 0:02:59]}  Nc6 {[%clk 0:02:57]} 4. d4 {[%clk 0:02:58]}  exd4 {[%clk 0:02:57]} 5. Nxd4 {[%clk 0:02:58]}  Bb4 {[%clk 0:02:58]} 6. g3 {[%clk 0:02:55]}  O-O {[%clk 0:02:57]} 7. Bg2 {[%clk 0:02:55]}  h6 {[%clk 0:02:52]} 8. O-O {[%clk 0:02:53]}  Bxc3 {[%clk 0:02:50]} 9. bxc3 {[%clk 0:02:52]}  Re8 {[%clk 0:02:50]} 10. Bf4 {[%clk 0:01:31]}  Ne5 {[%clk 0:02:43]} 11. c5 {[%clk 0:01:27]}  Ng6 {[%clk 0:02:41]} 12. Be3 {[%clk 0:00:57]}  Ne4 {[%clk 0:02:32]} 13. Nb3 {[%clk 0:00:20]}  d6 {[%clk 0:02:18]} 14. cxd6 {[%clk 0:00:16]}  Nxd6 {[%clk 0:02:19]} 15. Bd4 {[%clk 0:00:13]}  Bg4 {[%clk 0:02:15]} 16. Re1 {[%clk 0:00:10]}  a6 {[%clk 0:02:11]} 17. h3 {[%clk 0:00:10]}  Be6 {[%clk 0:02:10]} 18. a4 {[%clk 0:00:10]}  Qd7 {[%clk 0:02:10]} 19. Nc5 {[%clk 0:00:10]}  Qc8 {[%clk 0:02:09]} 20. Nxe6 {[%clk 0:00:10]}  Qxe6 {[%clk 0:02:10]} 21. e4 {[%clk 0:00:09]}  Rad8 {[%clk 0:02:08]} 22. Qb1 {[%clk 0:00:09]}  b6 {[%clk 0:02:06]} 23. f4 {[%clk 0:00:06]}  Qc4 {[%clk 0:02:02]} 24. Kh2 {[%clk 0:00:06]}  Ne7 {[%clk 0:01:09]} 25. Bf1 {[%clk 0:00:03]}  Qc6 {[%clk 0:01:07]} 26. Bxa6 {[%clk 0:00:03]}  Ra8 {[%clk 0:01:03]} 27. Bb5 {[%clk 0:00:03]}  Nxb5 {[%clk 0:01:00]} 28. Qxb5 {[%clk 0:00:04]}  Qxb5 {[%clk 0:00:39]} 29. axb5 {[%clk 0:00:05]}  Rxa1 {[%clk 0:00:32]} 30. Rxa1 {[%clk 0:00:06]}  Nc8 {[%clk 0:00:33]} 31. e5 {[%clk 0:00:06]}  Ne7 {[%clk 0:00:32]} 32. Ra7 {[%clk 0:00:06]}  Rc8 {[%clk 0:00:20]} 33. g4 {[%clk 0:00:04]}  Nd5 {[%clk 0:00:20]} 34. Kg3 {[%clk 0:00:04]}  Kf8 {[%clk 0:00:20]} 35. f5 {[%clk 0:00:05]}  Ke7 {[%clk 0:00:21]} 36. Kf3 {[%clk 0:00:05]}  Ke8 {[%clk 0:00:19]} 37. Ke4 {[%clk 0:00:05]}  Ne7 {[%clk 0:00:20]} 38. h4 {[%clk 0:00:05]}  c6 {[%clk 0:00:17]} 39. bxc6 {[%clk 0:00:04]}  Nxc6 {[%clk 0:00:18]} 40. Rb7 {[%clk 0:00:04]}  Na5 {[%clk 0:00:17]} 41. Rxb6 {[%clk 0:00:04]}  Nc4 {[%clk 0:00:18]} 42. Rb7 {[%clk 0:00:04]}  Nd2+ {[%clk 0:00:19]} 43. Kd5 {[%clk 0:00:04]}  Nf3 {[%clk 0:00:19]} 44. h5 {[%clk 0:00:04]}  Ng5 {[%clk 0:00:19]} 45. Kd6 {[%clk 0:00:03]}  Rd8+ {[%clk 0:00:20]} 46. Kc5 {[%clk 0:00:03]}  Ne4+ {[%clk 0:00:21]} 47. Kc6 {[%clk 0:00:04]}  Rc8+ {[%clk 0:00:21]} 48. Kd5 {[%clk 0:00:03]}  Ng5 {[%clk 0:00:21]} 49. e6 {[%clk 0:00:03]}  Rd8+ {[%clk 0:00:20]} 50. Ke5 {[%clk 0:00:03]}  Nf3+ {[%clk 0:00:18]} 51. Ke4 {[%clk 0:00:03]}  Ng5+ {[%clk 0:00:18]} 52. Ke5 {[%clk 0:00:03]}  Nf3+ {[%clk 0:00:18]} 53. Kf4 {[%clk 0:00:04]}  Nxd4 {[%clk 0:00:16]} 54. exf7+ {[%clk 0:00:04]}  Kf8 {[%clk 0:00:17]} 55. cxd4 {[%clk 0:00:04]}  Rxd4+ {[%clk 0:00:18]} 56. Kg3 {[%clk 0:00:04]}  Rd3+ {[%clk 0:00:17]} 57. Kf4 {[%clk 0:00:04]}  Rd1 {[%clk 0:00:16]} 58. Ke5 {[%clk 0:00:04]}  Re1+ {[%clk 0:00:16]} 59. Kf4 {[%clk 0:00:05]}  Re2 {[%clk 0:00:16]} 60. f6 {[%clk 0:00:04]}  Rf2+ {[%clk 0:00:14]} 61. Ke4 {[%clk 0:00:05]}  Rxf6 {[%clk 0:00:15]} 62. Ke5 {[%clk 0:00:05]}  Rxf7 {[%clk 0:00:13]} 63. Rb8+ {[%clk 0:00:05]}  Ke7 {[%clk 0:00:13]} 64. Rg8 {[%clk 0:00:05]}  Kd7 {[%clk 0:00:11]} 65. Ke4 {[%clk 0:00:05]}  Ke6 {[%clk 0:00:12]} 66. Re8+ {[%clk 0:00:03]}  Kf6 {[%clk 0:00:12]} 67. Kf4 {[%clk 0:00:04]}  Ra7 {[%clk 0:00:12]} 68. Rb8 {[%clk 0:00:04]}  Ra4+ {[%clk 0:00:11]} 69. Kg3 {[%clk 0:00:04]}  Kg5 {[%clk 0:00:11]} 70. Rb5+ {[%clk 0:00:05]}  Kf6 {[%clk 0:00:11]} 71. Rf5+ {[%clk 0:00:04]}  Ke6 {[%clk 0:00:12]} 72. Kh4 {[%clk 0:00:05]}  Ra3 {[%clk 0:00:11]} 73. Rf1 {[%clk 0:00:05]}  Rb3 {[%clk 0:00:11]} 74. Rf2 {[%clk 0:00:03]}  Rc3 {[%clk 0:00:12]} 75. Rf8 {[%clk 0:00:03]}  Ke7 {[%clk 0:00:11]} 76. Rf4 {[%clk 0:00:02]}  Re3 {[%clk 0:00:11]} 77. Rd4 {[%clk 0:00:02]}  Ke6 {[%clk 0:00:12]} 78. Ra4 {[%clk 0:00:03]}  Kf6 {[%clk 0:00:12]} 79. Ra7 {[%clk 0:00:03]}  Rf3 {[%clk 0:00:11]} 80. Ra6+ {[%clk 0:00:03]}  Kf7 {[%clk 0:00:11]} 81. Rg6 {[%clk 0:00:03]}  Re3 {[%clk 0:00:10]} 82. g5 {[%clk 0:00:04]}  Re4+ {[%clk 0:00:10]} 83. Kg3 {[%clk 0:00:04]}  hxg5 {[%clk 0:00:09]} 84. Rxg5 {[%clk 0:00:05]}  Re6 {[%clk 0:00:10]} 85. Rf5+ {[%clk 0:00:05]}  Kg8 {[%clk 0:00:09]} 86. Ra5 {[%clk 0:00:06]}  Kh7 {[%clk 0:00:09]} 87. Kg4 {[%clk 0:00:06]}  Kh6 {[%clk 0:00:09]} 88. Ra8 {[%clk 0:00:07]}  Re4+ {[%clk 0:00:09]} 89. Kf5 {[%clk 0:00:07]}  g6+ {[%clk 0:00:02]} 90. Kxe4 {[%clk 0:00:06]}  Kxh5 {[%clk 0:00:03]} 91. Kf4 {[%clk 0:00:06]}  g5+ {[%clk 0:00:03]} 92. Kf5 {[%clk 0:00:06]} 1-0


[Site "https://www.chess.com"]

[Event "Titled Tuesday Blitz June 6 Early 2023"]
[White "Papayan, Oleg"]
[Black "Chernobay, Artem"]
[WhiteFideId "4193911"]
[BlackFideId "4167406"]
[WhiteElo "2167"]
[BlackElo "2474"]
[Result "1-0"]
[Round "5"]
[TimeControl "180+2"]
[Date "2023.06.06"]
[WhiteClock "0:00:30"]
[BlackClock "0:00:02"]
[Board "86"]

1. e4 {[%clk 0:02:58]}  e6 {[%clk 0:02:59]} 2. d4 {[%clk 0:02:57]}  d5 {[%clk 0:03:00]} 3. Nc3 {[%clk 0:02:57]}  Nc6 {[%clk 0:02:59]} 4. e5 {[%clk 0:02:54]}  f6 {[%clk 0:02:59]} 5. Nf3 {[%clk 0:02:53]}  fxe5 {[%clk 0:02:47]} 6. Nxe5 {[%clk 0:02:53]}  Nxe5 {[%clk 0:02:46]} 7. dxe5 {[%clk 0:02:54]}  Ne7 {[%clk 0:02:33]} 8. Bg5 {[%clk 0:02:44]}  c5 {[%clk 0:02:28]} 9. Nb5 {[%clk 0:02:33]}  Qb6 {[%clk 0:02:07]} 10. Nd6+ {[%clk 0:02:31]}  Kd7 {[%clk 0:02:07]} 11. Bd3 {[%clk 0:02:06]}  h6 {[%clk 0:01:46]} 12. Be3 {[%clk 0:01:45]}  g5 {[%clk 0:01:23]} 13. O-O {[%clk 0:01:44]}  Bg7 {[%clk 0:01:21]} 14. b4 {[%clk 0:01:20]}  Bxe5 {[%clk 0:01:07]} 15. Bxc5 {[%clk 0:01:19]}  Qc7 {[%clk 0:01:03]} 16. Nf7 {[%clk 0:01:04]}  Bxh2+ {[%clk 0:00:56]} 17. Kh1 {[%clk 0:01:04]}  Rf8 {[%clk 0:00:56]} 18. Bb5+ {[%clk 0:00:55]}  Nc6 {[%clk 0:00:47]} 19. Bxf8 {[%clk 0:00:56]}  Ke8 {[%clk 0:00:43]} 20. Bxh6 {[%clk 0:00:44]}  Bf4 {[%clk 0:00:21]} 21. Nxg5 {[%clk 0:00:40]}  Kd7 {[%clk 0:00:13]} 22. Qh5 {[%clk 0:00:36]}  Qe5 {[%clk 0:00:05]} 23. Rae1 {[%clk 0:00:32]}  Qf6 {[%clk 0:00:02]} 24. Rxe6 {[%clk 0:00:30]} 1-0


[Site "https://www.chess.com"]

[Event "Titled Tuesday Blitz June 6 Early 2023"]
[White "Manukyan, Sargis A."]
[Black "Hristodoulou, Panagiotis"]
[WhiteFideId "13303970"]
[BlackFideId "4214340"]
[WhiteElo "2187"]
[BlackElo "2272"]
[Result "0-1"]
[Round "5"]
[TimeControl "180+2"]
[Date "2023.06.06"]
[WhiteClock "0:00:06"]
[BlackClock "0:02:09"]
[Board "92"]

1. d4 {[%clk 0:03:00]}  Nf6 {[%clk 0:02:49]} 2. c4 {[%clk 0:03:01]}  e6 {[%clk 0:02:49]} 3. Nc3 {[%clk 0:03:01]}  Bb4 {[%clk 0:02:49]} 4. a3 {[%clk 0:03:02]}  Bxc3+ {[%clk 0:02:47]} 5. bxc3 {[%clk 0:03:03]}  O-O {[%clk 0:02:48]} 6. e3 {[%clk 0:03:03]}  d6 {[%clk 0:02:48]} 7. Bd3 {[%clk 0:03:04]}  Nbd7 {[%clk 0:02:48]} 8. Ne2 {[%clk 0:03:05]}  e5 {[%clk 0:02:46]} 9. O-O {[%clk 0:03:05]}  Re8 {[%clk 0:02:46]} 10. Bb1 {[%clk 0:03:05]}  b6 {[%clk 0:02:44]} 11. Ng3 {[%clk 0:03:05]}  Ba6 {[%clk 0:02:42]} 12. Qa4 {[%clk 0:03:02]}  Bb7 {[%clk 0:02:42]} 13. f4 {[%clk 0:02:59]}  exf4 {[%clk 0:02:42]} 14. exf4 {[%clk 0:02:59]}  Ne4 {[%clk 0:02:41]} 15. Qc2 {[%clk 0:02:52]}  Ndf6 {[%clk 0:02:38]} 16. Nf5 {[%clk 0:02:45]}  Qd7 {[%clk 0:02:35]} 17. Ne3 {[%clk 0:02:40]}  Re7 {[%clk 0:02:34]} 18. d5 {[%clk 0:02:32]}  Rae8 {[%clk 0:02:33]} 19. g4 {[%clk 0:02:24]}  Nxg4 {[%clk 0:02:31]} 20. Ng2 {[%clk 0:02:17]}  a5 {[%clk 0:02:26]} 21. f5 {[%clk 0:02:17]}  Ba6 {[%clk 0:02:23]} 22. f6 {[%clk 0:01:49]}  Ngxf6 {[%clk 0:02:21]} 23. Rxf6 {[%clk 0:01:49]}  Nxf6 {[%clk 0:02:20]} 24. Bg5 {[%clk 0:01:49]}  Qg4 {[%clk 0:02:16]} 25. Ra2 {[%clk 0:00:10]}  Qxg5 {[%clk 0:02:12]} 26. h4 {[%clk 0:00:10]}  Qg3 {[%clk 0:02:11]} 27. Qf2 {[%clk 0:00:06]}  Re1+ {[%clk 0:02:09]} 0-1


[Site "https://www.chess.com"]

[Event "Titled Tuesday Blitz June 6 Early 2023"]
[White "Novikov, Evgenij"]
[Black "Garcia Jimenez, Francisco Javier"]
[WhiteFideId "4125380"]
[BlackFideId "2231590"]
[WhiteElo "2242"]
[BlackElo "2246"]
[Result "1/2-1/2"]
[Round "5"]
[TimeControl "180+2"]
[Date "2023.06.06"]
[WhiteClock "0:00:47"]
[BlackClock "0:01:22"]
[Board "94"]

1. f4 {[%clk 0:03:00]}  d5 {[%clk 0:02:33]} 2. Nf3 {[%clk 0:03:00]}  g6 {[%clk 0:02:32]} 3. g3 {[%clk 0:03:00]}  Bg7 {[%clk 0:02:32]} 4. Bg2 {[%clk 0:03:01]}  c5 {[%clk 0:02:32]} 5. O-O {[%clk 0:03:02]}  Nc6 {[%clk 0:02:32]} 6. d3 {[%clk 0:03:02]}  Nf6 {[%clk 0:02:28]} 7. Nc3 {[%clk 0:03:01]}  O-O {[%clk 0:02:28]} 8. e4 {[%clk 0:02:59]}  d4 {[%clk 0:02:27]} 9. Ne2 {[%clk 0:02:58]}  Ne8 {[%clk 0:02:25]} 10. a4 {[%clk 0:02:57]}  e5 {[%clk 0:02:25]} 11. Nd2 {[%clk 0:02:55]}  f5 {[%clk 0:02:23]} 12. Nc4 {[%clk 0:02:50]}  Nd6 {[%clk 0:02:23]} 13. Nxe5 {[%clk 0:02:40]}  Nxe5 {[%clk 0:02:17]} 14. fxe5 {[%clk 0:02:41]}  Bxe5 {[%clk 0:02:17]} 15. Bh6 {[%clk 0:02:39]}  Bg7 {[%clk 0:02:15]} 16. Bxg7 {[%clk 0:02:38]}  Kxg7 {[%clk 0:02:16]} 17. c3 {[%clk 0:02:13]}  fxe4 {[%clk 0:02:11]} 18. cxd4 {[%clk 0:02:12]}  Rxf1+ {[%clk 0:02:07]} 19. Bxf1 {[%clk 0:01:56]}  exd3 {[%clk 0:02:03]} 20. Qxd3 {[%clk 0:01:54]}  Bf5 {[%clk 0:02:02]} 21. Qe3 {[%clk 0:01:44]}  cxd4 {[%clk 0:01:43]} 22. Nxd4 {[%clk 0:01:43]}  Qf6 {[%clk 0:01:41]} 23. Rc1 {[%clk 0:01:37]}  Re8 {[%clk 0:01:39]} 24. Rc7+ {[%clk 0:01:35]}  Kh8 {[%clk 0:01:36]} 25. Qc3 {[%clk 0:01:12]}  Ne4 {[%clk 0:01:36]} 26. Qe3 {[%clk 0:00:52]}  Nd6 {[%clk 0:01:22]} 27. Qc3 {[%clk 0:00:51]}  Ne4 {[%clk 0:01:22]} 28. Qe3 {[%clk 0:00:47]}  Nd6 {[%clk 0:01:22]} 1/2-1/2


[Site "https://www.chess.com"]

[Event "Titled Tuesday Blitz June 6 Early 2023"]
[White "Bayo Milagro, Alvaro"]
[Black "Buchenau, Frank"]
[WhiteFideId "22275240"]
[BlackFideId "4604350"]
[WhiteElo "2270"]
[BlackElo "2157"]
[Result "1-0"]
[Round "5"]
[TimeControl "180+2"]
[Date "2023.06.06"]
[WhiteClock "0:01:12"]
[BlackClock "0:00:37"]
[Board "95"]

1. Nf3 {[%clk 0:03:00]}  Nf6 {[%clk 0:02:59]} 2. c4 {[%clk 0:03:00]}  e6 {[%clk 0:02:59]} 3. d4 {[%clk 0:03:00]}  b6 {[%clk 0:02:59]} 4. a3 {[%clk 0:03:00]}  Ba6 {[%clk 0:02:58]} 5. Qc2 {[%clk 0:03:00]}  Bb7 {[%clk 0:02:57]} 6. Nc3 {[%clk 0:03:01]}  c5 {[%clk 0:02:57]} 7. dxc5 {[%clk 0:03:01]}  Bxc5 {[%clk 0:02:56]} 8. Bf4 {[%clk 0:02:59]}  O-O {[%clk 0:02:52]} 9. e3 {[%clk 0:02:59]}  Nh5 {[%clk 0:02:48]} 10. Bg5 {[%clk 0:02:55]}  Be7 {[%clk 0:02:48]} 11. h4 {[%clk 0:02:54]}  h6 {[%clk 0:02:44]} 12. Bxe7 {[%clk 0:02:51]}  Qxe7 {[%clk 0:02:45]} 13. Be2 {[%clk 0:02:51]}  Nf6 {[%clk 0:02:43]} 14. Rg1 {[%clk 0:02:29]}  Ng4 {[%clk 0:02:35]} 15. g3 {[%clk 0:02:24]}  d6 {[%clk 0:02:29]} 16. Nd4 {[%clk 0:02:21]}  f5 {[%clk 0:02:24]} 17. Bxg4 {[%clk 0:02:21]}  fxg4 {[%clk 0:02:23]} 18. O-O-O {[%clk 0:02:21]}  Nd7 {[%clk 0:02:07]} 19. Ndb5 {[%clk 0:02:12]}  Ne5 {[%clk 0:01:44]} 20. Nxd6 {[%clk 0:02:07]}  Bf3 {[%clk 0:01:41]} 21. Rd4 {[%clk 0:02:04]}  Rfd8 {[%clk 0:01:33]} 22. Ndb5 {[%clk 0:01:52]}  Rxd4 {[%clk 0:01:28]} 23. Nxd4 {[%clk 0:01:53]}  Nxc4 {[%clk 0:01:22]} 24. Nxf3 {[%clk 0:01:48]}  gxf3 {[%clk 0:01:23]} 25. Rd1 {[%clk 0:01:44]}  Rc8 {[%clk 0:01:21]} 26. Kb1 {[%clk 0:01:40]}  Qf6 {[%clk 0:01:09]} 27. Rd4 {[%clk 0:01:35]}  e5 {[%clk 0:00:58]} 28. Nd5 {[%clk 0:01:12]}  Nxa3+ {[%clk 0:00:38]} 29. bxa3 {[%clk 0:01:11]}  Rxc2 {[%clk 0:00:37]} 30. Nxf6+ {[%clk 0:01:11]}  gxf6 {[%clk 0:00:37]} 31. Rd8+ {[%clk 0:01:11]}  Kf7 {[%clk 0:00:37]} 32. Kxc2 {[%clk 0:01:12]} 1-0


[Site "https://www.chess.com"]

[Event "Titled Tuesday Blitz June 6 Early 2023"]
[White "Bochnicka, Vladimir"]
[Black "Skliarov, Viktor"]
[WhiteFideId "14943450"]
[BlackFideId "14106736"]
[WhiteElo "2094"]
[BlackElo "2317"]
[Result "0-1"]
[Round "5"]
[TimeControl "180+2"]
[Date "2023.06.06"]
[WhiteClock "0:00:11"]
[BlackClock "0:00:08"]
[Board "96"]

1. e4 {[%clk 0:02:56]}  c5 {[%clk 0:02:59]} 2. Nf3 {[%clk 0:02:57]}  Nc6 {[%clk 0:02:59]} 3. d4 {[%clk 0:02:57]}  cxd4 {[%clk 0:02:59]} 4. Nxd4 {[%clk 0:02:58]}  Nf6 {[%clk 0:03:00]} 5. Nc3 {[%clk 0:02:58]}  e5 {[%clk 0:02:59]} 6. Ndb5 {[%clk 0:02:59]}  d6 {[%clk 0:02:59]} 7. Bg5 {[%clk 0:02:55]}  a6 {[%clk 0:02:58]} 8. Na3 {[%clk 0:02:55]}  b5 {[%clk 0:02:59]} 9. Nd5 {[%clk 0:02:56]}  Be7 {[%clk 0:02:59]} 10. Bxf6 {[%clk 0:02:56]}  Bxf6 {[%clk 0:03:00]} 11. c3 {[%clk 0:02:56]}  O-O {[%clk 0:02:59]} 12. h4 {[%clk 0:02:54]}  g6 {[%clk 0:02:52]} 13. Nc2 {[%clk 0:02:52]}  Bg7 {[%clk 0:02:47]} 14. a4 {[%clk 0:02:34]}  bxa4 {[%clk 0:02:38]} 15. Rxa4 {[%clk 0:02:33]}  a5 {[%clk 0:02:38]} 16. Nce3 {[%clk 0:02:31]}  Rb8 {[%clk 0:02:33]} 17. b3 {[%clk 0:02:28]}  Bd7 {[%clk 0:02:28]} 18. h5 {[%clk 0:02:07]}  Nd4 {[%clk 0:01:39]} 19. cxd4 {[%clk 0:01:47]}  Bxa4 {[%clk 0:01:35]} 20. bxa4 {[%clk 0:01:48]}  exd4 {[%clk 0:01:36]} 21. Ng4 {[%clk 0:01:42]}  Re8 {[%clk 0:01:03]} 22. hxg6 {[%clk 0:01:24]}  Rxe4+ {[%clk 0:00:37]} 23. Be2 {[%clk 0:01:24]}  Rb2 {[%clk 0:00:36]} 24. gxf7+ {[%clk 0:00:58]}  Kf8 {[%clk 0:00:24]} 25. Nf4 {[%clk 0:00:26]}  Rxf4 {[%clk 0:00:16]} 26. Kf1 {[%clk 0:00:26]}  Qg5 {[%clk 0:00:09]} 27. Rxh7 {[%clk 0:00:11]}  d3 {[%clk 0:00:07]} 28. Qxd3 {[%clk 0:00:08]}  Rb1+ {[%clk 0:00:07]} 29. Qxb1 {[%clk 0:00:07]}  Rxg4 {[%clk 0:00:07]} 30. Bxg4 {[%clk 0:00:07]}  Qxg4 {[%clk 0:00:07]} 31. Rh3 {[%clk 0:00:05]}  Qxa4 {[%clk 0:00:04]} 32. Qb8+ {[%clk 0:00:03]}  Kxf7 {[%clk 0:00:05]} 33. Rf3+ {[%clk 0:00:04]}  Ke6 {[%clk 0:00:04]} 34. Qe8+ {[%clk 0:00:04]}  Qxe8 {[%clk 0:00:03]} 35. Re3+ {[%clk 0:00:04]}  Be5 {[%clk 0:00:03]} 36. f4 {[%clk 0:00:04]}  Kf5 {[%clk 0:00:03]} 37. fxe5 {[%clk 0:00:05]}  dxe5 {[%clk 0:00:04]} 38. Ke2 {[%clk 0:00:05]}  e4 {[%clk 0:00:04]} 39. Kd2 {[%clk 0:00:06]}  Qb5 {[%clk 0:00:04]} 40. Kc2 {[%clk 0:00:06]}  Qc4+ {[%clk 0:00:04]} 41. Kb2 {[%clk 0:00:06]}  Qd4+ {[%clk 0:00:05]} 42. Rc3 {[%clk 0:00:06]}  e3 {[%clk 0:00:05]} 43. Kc2 {[%clk 0:00:07]}  Qd2+ {[%clk 0:00:05]} 44. Kb3 {[%clk 0:00:07]}  Ke4 {[%clk 0:00:04]} 45. Rc4+ {[%clk 0:00:07]}  Kd3 {[%clk 0:00:05]} 46. Rc8 {[%clk 0:00:07]}  Qb4+ {[%clk 0:00:05]} 47. Ka2 {[%clk 0:00:07]}  e2 {[%clk 0:00:05]} 48. Rd8+ {[%clk 0:00:07]}  Qd4 {[%clk 0:00:05]} 49. Rxd4+ {[%clk 0:00:07]}  Kxd4 {[%clk 0:00:06]} 50. Kb3 {[%clk 0:00:08]}  e1=Q {[%clk 0:00:06]} 51. Ka4 {[%clk 0:00:09]}  Qg3 {[%clk 0:00:07]} 52. Kxa5 {[%clk 0:00:09]}  Qxg2 {[%clk 0:00:08]} 53. Kb6 {[%clk 0:00:10]}  Kd5 {[%clk 0:00:08]} 54. Kb7 {[%clk 0:00:11]} 0-1


[Site "https://www.chess.com"]

[Event "Titled Tuesday Blitz June 6 Early 2023"]
[White "Rangel, Daniel"]
[Black "Gontcharov, Vladislav"]
[WhiteFideId "2124475"]
[BlackFideId "4123492"]
[WhiteElo "2231"]
[BlackElo "2420"]
[Result "1/2-1/2"]
[Round "5"]
[TimeControl "180+2"]
[Date "2023.06.06"]
[WhiteClock "0:00:08"]
[BlackClock "0:00:03"]
[Board "100"]

1. d4 {[%clk 0:03:00]}  Nf6 {[%clk 0:02:59]} 2. c4 {[%clk 0:03:00]}  e6 {[%clk 0:02:59]} 3. Nc3 {[%clk 0:02:51]}  Bb4 {[%clk 0:02:58]} 4. e3 {[%clk 0:02:51]}  O-O {[%clk 0:02:57]} 5. Bd3 {[%clk 0:02:50]}  c5 {[%clk 0:02:57]} 6. Ne2 {[%clk 0:02:49]}  cxd4 {[%clk 0:02:55]} 7. exd4 {[%clk 0:02:40]}  d5 {[%clk 0:02:55]} 8. a3 {[%clk 0:02:39]}  Bxc3+ {[%clk 0:02:45]} 9. Nxc3 {[%clk 0:02:30]}  dxc4 {[%clk 0:02:45]} 10. Bxc4 {[%clk 0:02:31]}  Nbd7 {[%clk 0:02:43]} 11. O-O {[%clk 0:02:25]}  Nb6 {[%clk 0:02:35]} 12. Ba2 {[%clk 0:02:23]}  h6 {[%clk 0:02:31]} 13. Kh1 {[%clk 0:02:16]}  Bd7 {[%clk 0:02:30]} 14. f4 {[%clk 0:02:15]}  Bc6 {[%clk 0:02:28]} 15. f5 {[%clk 0:02:11]}  Nbd5 {[%clk 0:01:26]} 16. fxe6 {[%clk 0:01:58]}  fxe6 {[%clk 0:01:26]} 17. Qe2 {[%clk 0:01:48]}  Qd6 {[%clk 0:01:19]} 18. Bd2 {[%clk 0:01:43]}  Rae8 {[%clk 0:01:18]} 19. Rae1 {[%clk 0:01:40]}  Kh8 {[%clk 0:01:13]} 20. Bb1 {[%clk 0:01:27]}  a6 {[%clk 0:01:06]} 21. Qd3 {[%clk 0:01:24]}  Kg8 {[%clk 0:00:58]} 22. Bxh6 {[%clk 0:01:18]}  Nxc3 {[%clk 0:00:47]} 23. Qg6 {[%clk 0:01:05]}  Re7 {[%clk 0:00:35]} 24. bxc3 {[%clk 0:01:05]}  Qd5 {[%clk 0:00:26]} 25. Rxf6 {[%clk 0:00:40]}  Rxf6 {[%clk 0:00:25]} 26. Qh7+ {[%clk 0:00:41]}  Kf7 {[%clk 0:00:26]} 27. Qxg7+ {[%clk 0:00:33]}  Ke8 {[%clk 0:00:26]} 28. Qg8+ {[%clk 0:00:26]}  Kd7 {[%clk 0:00:24]} 29. Be3 {[%clk 0:00:15]}  Ref7 {[%clk 0:00:23]} 30. Bg1 {[%clk 0:00:10]}  Rf1 {[%clk 0:00:19]} 31. Be4 {[%clk 0:00:08]}  Qh5 {[%clk 0:00:13]} 32. Bxc6+ {[%clk 0:00:07]}  bxc6 {[%clk 0:00:13]} 33. Rxf1 {[%clk 0:00:07]}  Rxf1 {[%clk 0:00:13]} 34. Qg7+ {[%clk 0:00:07]}  Qf7 {[%clk 0:00:12]} 35. Qg3 {[%clk 0:00:06]}  Rd1 {[%clk 0:00:09]} 36. h4 {[%clk 0:00:06]}  Qf1 {[%clk 0:00:08]} 37. Qh2 {[%clk 0:00:05]}  Qf5 {[%clk 0:00:02]} 38. h5 {[%clk 0:00:05]}  Qe4 {[%clk 0:00:02]} 39. h6 {[%clk 0:00:05]}  Kc8 {[%clk 0:00:02]} 40. h7 {[%clk 0:00:06]}  Rxg1+ {[%clk 0:00:02]} 41. Qxg1 {[%clk 0:00:06]}  Qxh7+ {[%clk 0:00:02]} 42. Qh2 {[%clk 0:00:06]}  Qb1+ {[%clk 0:00:02]} 43. Qg1 {[%clk 0:00:07]}  Qh7+ {[%clk 0:00:02]} 44. Qh2 {[%clk 0:00:08]}  Qb1+ {[%clk 0:00:03]} 45. Qg1 {[%clk 0:00:08]}  Qh7+ {[%clk 0:00:03]} 1/2-1/2


[Site "https://www.chess.com"]